[Event "44th Chess Olympiad Open 2022"]
[Site "Chennai"]
[Date "2022.07.29"]
[Round "1.48"]
[White "Soriano, Rudolph P."]
[Black "Hamitevici, Vladimir"]
[Result "0-1"]
[WhiteElo "1824"]
[BlackElo "2473"]
[Annotator "TA"]
[PlyCount "90"]
[EventDate "2022.??.??"]
[TimeControl "60"]

{[%evp 15,90,16,19,0,0,0,-3,-8,-12,-23,-2,-18,-12,-37,-34,-57,-72,-58,-52,-58,
-37,-61,-27,-42,-44,-132,-124,-134,-116,-113,-76,-147,-144,-146,-133,-208,-188,
-246,-258,-241,-219,-312,-304,-361,-325,-373,-376,-382,-379,-379,-371,-375,
-369,-433,-399,-416,-412,-464,-457,-460,-451,-616,-628,-609,-594,-726,-668,
-1314,-1313,-1493,-1452,-1656,-1642,-29984,-29983,-3766,-3409]} 1. Nf3 {
[%emt 0:00:22]} Nf6 {[%emt 0:00:30]} 2. c4 {[%emt 0:00:18]} e6 {[%emt 0:00:41]}
3. g3 {[%emt 0:00:29]} b6 {[%emt 0:00:30]} 4. Bg2 {[%emt 0:00:19]} Bb7 {
[%emt 0:00:04]} 5. O-O {[%emt 0:00:19]} Be7 {[%emt 0:00:11]} 6. d3 {[%emt 0:00:
00]} O-O {[%emt 0:00:52]} 7. e4 {[%emt 0:00:10] The main line 7.e4 scores
better than 7.Nc3.} c5 {[%emt 0:01:28]} 8. Nc3 {[%emt 0:00:21]} d6 {[%emt 0:00:
00]} 9. Nh4 {[%emt 0:00:24][%cal Ye4e5] A17: English Opening: 1...Nf6 with ...
Bb4.} Nfd7 {[%emt 0:01:08]} 10. Nf3 {[%emt 0:01:16]} Ne5 {[%emt 0:01:14] [#]}
11. Bf4 $146 {[%emt 0:01:48] The position is equal.} ({Predecessor:} 11. Ne1
Nec6 12. f4 Nd4 13. Nc2 a6 14. Nxd4 cxd4 15. Ne2 e5 16. Bd2 Nd7 17. a4 {
0-1 (38) Koshil,T (2229)-Zubov,A (2538) Rodatychi 2006}) 11... Nbc6 {[%emt 0:
00:00]} 12. a3 {[%emt 0:01:13]} Bf6 {[%emt 0:01:25]} 13. Rc1 {[%emt 0:02:31]}
Qe7 {[%emt 0:03:43]} 14. Qe2 {[%emt 0:01:24]} a6 {[%emt 0:00:47]} 15. Rfd1 {
[%emt 0:00:38]} Nxf3+ {[%emt 0:01:07]} 16. Qxf3 {[%emt 0:02:44]} Nd4 {[%emt 0:
00:00]} 17. Qg4 {[%emt 0:01:01]} b5 {[%emt 0:01:15]} 18. Re1 {[%emt 0:01:54]}
b4 {[%emt 0:02:49]} 19. axb4 {[%emt 0:02:33]} cxb4 {[%emt 0:00:02]} 20. Nd1 {
[%emt 0:01:36]} (20. Na4 $15) 20... e5 {[%emt 0:01:29] [#] ...Bc8 is the
strong threat.} 21. Bd2 {[%emt 0:02:30]} Bc8 {[%emt 0:01:35] Black is more
active.} 22. Qh5 {[%emt 0:00:38]} Nb3 $36 {[%emt 0:03:46] White is under
strong pressure.} 23. Rc2 {[%emt 0:02:13] [#]} (23. Ne3 $142) 23... g6 $1 $17 {
[%emt 0:02:26]} 24. Qh6 {[%emt 0:01:03]} a5 {[%emt 0:01:13]} 25. h4 {[%emt 0:
03:59]} (25. Kh1 $17) 25... Bg7 $19 {[%emt 0:01:46]} 26. Qg5 {[%emt 0:00:00]} (
26. Qe3 $142) 26... f6 {[%emt 0:00:07][%cal Yf7f6,Yf6f5,Yf5f4]} 27. Qe3 {
[%emt 0:00:36]} Bb7 {[%emt 0:03:05]} 28. f3 {[%emt 0:01:53]} (28. f4 $142)
28... f5 {[%emt 0:00:18]} 29. Qf2 {[%emt 0:02:05]} Nc5 {[%emt 0:02:36]} 30. Qe2
{[%emt 0:02:01]} f4 {[%emt 0:00:18]} 31. g4 {[%emt 0:12:34]} Qxh4 {[%emt 0:02:
11]} 32. Rf1 {[%emt 0:12:27]} Qd8 {[%emt 0:01:03]} 33. Be1 {[%emt 0:00:00]} Bf6
{[%emt 0:00:08]} 34. Nf2 {[%emt 0:01:14]} Nb3 {[%emt 0:01:05]} 35. Qd1 {
[%emt 0:01:02]} Nd4 {[%emt 0:00:44]} 36. Rc1 {[%emt 0:01:15]} Bh4 {[%emt 0:00:
51]} 37. Nh3 {[%emt 0:00:51]} Bc8 {[%emt 0:03:05]} 38. Bf2 {[%emt 0:00:00]}
Bxf2+ {[%emt 0:00:19]} 39. Rxf2 {[%emt 0:01:09]} Qh4 {[%emt 0:01:52]} 40. c5 {
[%emt 0:01:47]} h5 {[%emt 0:00:32][%cal Yh7h5,Yh5g4,Yg4h3,Yh3h2]} 41. cxd6 {
[%emt 0:34:07]} hxg4 {[%emt 0:30:07]} 42. Rc7 {[%emt 0:02:43]} gxh3 {[%emt 0:
00:53]} 43. Bh1 {[%emt 0:01:15]} Qg3+ {[%emt 0:00:32]} 44. Kf1 {[%emt 0:02:42]}
h2 {[%emt 0:00:07][%csl Gh2][%cal Rg3g1]} 45. Rg2 {[%emt 0:00:00]} Bh3 {
[%emt 0:00:08] Weighted Error Value: White=0.66/Black=0.04 (flawless)} 0-1

[Event "44th Chess Olympiad Open 2022"]
[Site "Chennai"]
[Date "2022.07.29"]
[Round "1.49"]
[White "Roselli Mailhe, Bernardo"]
[Black "Rafael Chirinza"]
[Result "1/2-1/2"]
[WhiteElo "2413"]
[BlackElo "1725"]
[Annotator "TA"]
[PlyCount "146"]
[EventDate "2022.??.??"]
[TimeControl "60"]

{[%evp 13,146,25,21,19,28,16,14,21,29,17,17,20,18,22,39,30,35,20,28,24,25,0,17,
0,-11,-11,0,0,15,-16,0,-10,0,-33,-23,-16,-11,-24,0,0,36,26,57,56,68,-39,0,0,68,
0,7,0,35,39,35,41,43,41,49,36,72,60,68,54,100,95,87,109,99,44,63,25,23,15,22,0,
0,0,0,0,39,39,51,51,51,51,51,51,51,51,51,51,51,51,51,22,20,25,170,32,643,637,
522,450,1019,354,1390,248,1074,0,0,0,1030,983,938,29,29,29,29,29,29,29,29,29,
29,29,29,10,14,8,8,8,20,0,0]} 1. d4 {[%emt 0:00:04]} d5 {[%emt 0:00:08]} 2. c4
{[%emt 0:00:18]} c6 {[%emt 0:00:15]} 3. Nf3 {[%emt 0:00:08]} Nf6 {[%emt 0:00:
00]} 4. e3 {[%emt 0:01:02]} Bf5 {[%emt 0:01:14]} 5. Nc3 {[%emt 0:00:35]} e6 {
[%emt 0:00:38]} 6. Nh4 {[%emt 0:01:11]} Bg6 {[%emt 0:00:34]} 7. Nxg6 {[%emt 0:
00:00]} hxg6 {[%emt 0:00:06]} 8. Bd2 {[%emt 0:01:57] D12: Slav Defence: 3 Nf3
Nf6 4 e3 Bf5.} Nbd7 {[%emt 0:02:52]} 9. Qb3 {[%emt 0:06:09]} Qb6 {[%emt 0:00:
00] is the legacy move (9...Qc7).} 10. Be2 {[%emt 0:02:37]} Be7 {[%emt 0:02:19]
} 11. O-O-O {[%emt 0:06:01]} Qxb3 {[%emt 0:02:25]} 12. axb3 {[%emt 0:00:06]}
O-O-O {[%emt 0:00:27] [#]} 13. Kb1 $146 {[%emt 0:07:27]} ({Predecessor:} 13.
Kc2 a6 14. h3 Rhe8 15. Bc1 b5 16. Bd2 Kb7 17. Rhe1 b4 18. Na2 a5 19. cxd5 exd5
{1-0 (74) Vojinovic,G (2463)-Haik,A (2381) France 2007}) 13... Rde8 {[%emt 0:
00:00]} 14. Rc1 {[%emt 0:06:08]} Bb4 {[%emt 0:04:51]} 15. h3 {[%emt 0:07:33]}
Kb8 {[%emt 0:04:44]} 16. Rhd1 {[%emt 0:05:40]} a5 {[%emt 0:06:00]} 17. Bf3 {
[%emt 0:05:37]} Rh4 {[%emt 0:05:01]} 18. Na2 {[%emt 0:04:40]} Bxd2 {[%emt 0:00:
00]} 19. Rxd2 {[%emt 0:00:05]} g5 {[%emt 0:02:59]} 20. Nc3 {[%emt 0:00:36]
[%cal Ya2c3,Yc3e2,Ye2g3]} Nb6 {[%emt 0:04:44]} 21. Ne2 {[%emt 0:03:33]} Nbd7 {
[%emt 0:03:31]} 22. Ng3 {[%emt 0:03:32]} g6 {[%emt 0:03:59]} 23. Re1 {[%emt 0:
02:45]} Kc7 {[%emt 0:08:32]} 24. Kc2 {[%emt 0:03:36]} Nb6 {[%emt 0:00:00]} 25.
Kc3 {[%emt 0:05:04]} e5 {[%emt 0:05:00]} 26. Ra1 {[%emt 0:03:22]} exd4+ {
[%emt 0:03:48]} 27. exd4 {[%emt 0:00:41]} Ra8 {[%emt 0:05:50]} 28. Re2 {
[%emt 0:01:55] Strongly threatening Re7+.} Kd8 {[%emt 0:01:32] Inhibits Re7.}
29. c5 {[%emt 0:04:42]} (29. Re5 $14) 29... Nc8 {[%emt 0:04:26]} (29... Nbd7 $5
{[%cal Rf6e8]}) 30. Re5 {[%emt 0:00:46]} g4 {[%emt 0:02:23]} (30... b6 $1 $11)
31. hxg4 {[%emt 0:01:57]} (31. Bxg4 $14 Nxg4 32. hxg4) 31... b6 $1 $11 {
[%emt 0:05:41]} 32. cxb6 {[%emt 0:01:59] Hoping for b7.} Nxb6 {[%emt 0:00:09]}
33. Rae1 {[%emt 0:02:11]} Nc8 {[%emt 0:04:14]} 34. g5 $36 {[%emt 0:01:39]
White has good play.} Nd7 {[%emt 0:00:07]} 35. Re8+ {[%emt 0:00:32]} Kc7 {
[%emt 0:00:41]} 36. Nf1 {[%emt 0:04:00]} Ra7 {[%emt 0:01:33]} 37. g3 {[%emt 0:
00:00]} Rh7 {[%emt 0:00:33]} 38. Bg4 {[%emt 0:01:28] 0x0.001f208362fadp-1022s
more active pieces.} Rh1 {[%emt 0:01:17]} (38... Nd6 $14 {was preferrable.})
39. Nd2 $16 {[%emt 0:01:58] Really sharp!} Rxe1 {[%emt 0:00:49]} 40. Rxe1 {
[%emt 0:00:06]} Nd6 {[%emt 0:02:18]} 41. Be2 {[%emt 0:12:45]} ({White should
play} 41. Re7 $16 Kd8 42. Rxd7+ Rxd7 43. Bxd7 Kxd7 44. Kd3) 41... Rb7 $14 {
[%emt 0:03:06]} 42. Ra1 {[%emt 0:02:12]} Kb6 {[%emt 0:00:54]} 43. Bd3 {[%emt 0:
00:00]} Nf8 $1 {[%emt 0:01:43]} 44. b4 {[%emt 0:02:53]} axb4+ {[%emt 0:03:49]}
45. Kxb4 {[%emt 0:00:05]} Ne6 $1 {[%emt 0:00:25][%csl Yd4,Yg5]} 46. Nf3 {
[%emt 0:06:57]} c5+ {[%emt 0:07:55]} 47. dxc5+ {[%emt 0:02:50]} Nxc5 {[%emt 0:
00:00]} 48. Kc3 {[%emt 0:00:14]} Nde4+ {[%emt 0:04:00]} 49. Bxe4 {[%emt 0:00:
00]} Nxe4+ {[%emt 0:00:14] Endgame KRN-KRN} 50. Kd4 {[%emt 0:00:19]} Nxf2 {
[%emt 0:02:01]} 51. Kxd5 {[%emt 0:00:33]} Rd7+ {[%emt 0:01:12]} 52. Ke5 {
[%emt 0:01:18]} Ng4+ {[%emt 0:01:04]} 53. Kf4 {[%emt 0:01:20]} Nf2 {[%emt 0:00:
00]} 54. Rf1 {[%emt 0:01:27]} Nd3+ {[%emt 0:00:50]} 55. Ke3 {[%emt 0:00:16]
Rd1 is the strong threat.} Nxb2 {[%emt 0:03:26]} (55... Nb4 $11) 56. Ne5 {
[%emt 0:01:24]} (56. Rb1 $18 Rd3+ 57. Ke4) 56... Re7 $2 {[%emt 0:00:47]} (56...
Nd1+ $14 57. Kf3 Rd5) 57. Kd4 $18 {[%emt 0:00:04]} Na4 {[%emt 0:00:00]} 58.
Rf6+ {[%emt 0:00:59]} Kc7 {[%emt 0:00:46]} (58... Kb5 $142 59. Rxf7 (59. Nxf7
Rd7+ 60. Ke5 Kc5 $18) 59... Rxf7 60. Nxf7 Kc6) 59. Ra6 $2 {[%emt 0:00:00]} (59.
Rxf7 Rxf7 60. Nxf7) 59... Nb6 $2 {[%emt 0:00:56] [#]} (59... Nb2 60. Ra7+ Kd6
61. Nxf7+ Ke6 62. Nd8+ Kd6 63. Ra6+ Kc7 64. Ne6+ Kd7) 60. Ra7+ $1 {[%emt 0:00:
59]} Kd6 {[%emt 0:00:26] [#]} 61. Ra6 $1 {[%emt 0:01:28]} Kc7 $1 $11 {[%emt 0:
00:30]} 62. Ra7+ $2 {[%emt 0:00:15]} (62. Ng4 $11) 62... Kd6 $18 {[%emt 0:00:
25]} 63. Nxf7+ {[%emt 0:00:06]} Ke6 {[%emt 0:00:37] [#]} 64. Nd8+ $2 {[%emt 0:
00:40]} (64. Rxe7+ $1 $18 Kxe7 65. Ne5) 64... Kd6 $11 {[%emt 0:00:26]} 65. Nb7+
{[%emt 0:00:09]} Ke6 {[%emt 0:00:48]} 66. Nc5+ {[%emt 0:00:34]} Kf7 $1 {
[%emt 0:00:05]} 67. Ra6 {[%emt 0:00:37]} Nd7 {[%emt 0:00:00]} 68. Nd3 {[%emt 0:
00:31]} Nf8 {[%emt 0:00:30]} 69. Ne5+ {[%emt 0:01:09]} Kg7 {[%emt 0:00:11]} 70.
Rd6 {[%emt 0:00:45]} Ne6+ {[%emt 0:00:40] The position is equal.} 71. Kd5 {
[%emt 0:00:12]} Nc7+ {[%emt 0:00:25]} 72. Ke4 {[%emt 0:00:22]} Ne6 {[%emt 0:00:
05]} 73. Kd5 {[%emt 0:00:05]} Nc7+ {[%emt 0:00:00] Weighted Error Value:
White=0.28 (precise) /Black=0.32} 1/2-1/2

[Event "44th Chess Olympiad Open 2022"]
[Site "Chennai"]
[Date "2022.07.29"]
[Round "1.49"]
[White "Hoffman, Alejandro"]
[Black "Napoleao, Lourenco"]
[Result "1-0"]
[WhiteElo "2390"]
[BlackElo "1778"]
[Annotator "ChessBase"]
[PlyCount "73"]
[EventDate "2022.??.??"]
[TimeControl "60"]

1. d4 {[%emt 0:00:06]} d5 {[%emt 0:00:10]} 2. c4 {[%emt 0:00:08]} c6 {[%emt 0:
00:00]} 3. e3 {[%emt 0:00:23]} Nf6 {[%emt 0:00:14]} 4. Nc3 {[%emt 0:00:32]} e6
{[%emt 0:00:22]} 5. b3 {[%emt 0:01:25]} Bb4 {[%emt 0:01:35]} 6. Bd2 {[%emt 0:
00:00]} Bxc3 {[%emt 0:09:14]} 7. Bxc3 {[%emt 0:00:07]} Ne4 {[%emt 0:00:01]} 8.
Qc2 {[%emt 0:04:11]} Nxc3 {[%emt 0:07:21]} 9. Qxc3 {[%emt 0:00:08]} O-O {
[%emt 0:00:43]} 10. Nf3 {[%emt 0:01:30]} Nd7 {[%emt 0:06:31]} 11. Bd3 {[%emt 0:
00:00]} dxc4 {[%emt 0:12:00]} 12. Bxc4 {[%emt 0:24:04]} c5 {[%emt 0:06:12]} 13.
Rd1 {[%emt 0:25:26]} cxd4 {[%emt 0:16:35]} 14. Rxd4 {[%emt 0:00:29]} Qf6 {
[%emt 0:01:42]} 15. O-O {[%emt 0:07:28]} Nb6 {[%emt 0:04:43]} 16. Qa5 {[%emt 0:
00:00]} Bd7 {[%emt 0:09:13]} 17. Bd3 {[%emt 0:00:59]} g6 {[%emt 0:08:59]} 18.
Be4 {[%emt 0:01:20]} Rfb8 {[%emt 0:06:40]} 19. Rfd1 {[%emt 0:01:20]} Be8 {
[%emt 0:00:02]} 20. h4 {[%emt 0:00:28]} Bc6 {[%emt 0:01:54]} 21. Bxc6 {[%emt 0:
00:00]} bxc6 {[%emt 0:00:01]} 22. Ne5 {[%emt 0:00:39]} c5 {[%emt 0:01:35]} 23.
Qxc5 {[%emt 0:01:46]} Rc8 {[%emt 0:02:00]} 24. Qd6 {[%emt 0:00:17]} Rd8 {
[%emt 0:01:50]} 25. Qxd8+ {[%emt 0:01:05]} Rxd8 {[%emt 0:00:01]} 26. Rxd8+ {
[%emt 0:00:08]} Kg7 {[%emt 0:00:14]} 27. Nf3 {[%emt 0:00:13]} Nd5 {[%emt 0:00:
00]} 28. Rd7 {[%emt 0:00:25]} h6 {[%emt 0:00:27]} 29. Rxa7 {[%emt 0:02:08]} g5
{[%emt 0:01:09]} 30. hxg5 {[%emt 0:00:07]} hxg5 {[%emt 0:00:01]} 31. Rd4 {
[%emt 0:00:16]} Qg6 {[%emt 0:01:12]} 32. g3 {[%emt 0:02:42]} Qf5 {[%emt 0:00:
00]} 33. Kg2 {[%emt 0:00:48]} g4 {[%emt 0:00:46]} 34. Nh2 {[%emt 0:01:30]}
Nxe3+ {[%emt 0:00:30]} 35. fxe3 {[%emt 0:00:11]} Qc2+ {[%emt 0:00:24]} 36. Kg1
{[%emt 0:00:07]} Qc1+ {[%emt 0:01:20]} 37. Nf1 {[%emt 0:00:07]} 1-0

[Event "44th Chess Olympiad Open 2022"]
[Site "Chennai"]
[Date "2022.07.29"]
[Round "1.49"]
[White "Vasco Mateus Felizardo Viagei"]
[Black "Meier, Georg"]
[Result "0-1"]
[WhiteElo "1852"]
[BlackElo "2613"]
[Annotator "TA"]
[PlyCount "86"]
[EventDate "2022.??.??"]
[TimeControl "60"]

{[%evp 12,86,4,-8,-8,-16,-8,-15,-11,-68,-67,-64,-28,-30,-15,-35,-33,-35,-37,
-36,-32,-33,-31,-21,-23,-38,0,-18,-13,-19,-15,-19,-18,-60,-67,-109,-122,-122,0,
0,0,-325,-284,-373,-294,-290,-294,-278,-285,-361,-268,-417,-408,-403,-269,-670,
-663,-628,-572,-717,-703,-886,-835,-1004,-960,-953,-532,-941,-922,-964,-922,
-6279,-5414,-5297,-782,-1462,-1409]} 1. e4 {[%emt 0:00:04]} c5 {[%emt 0:00:06]}
2. Nf3 {[%emt 0:00:07]} a6 {[%emt 0:00:04]} 3. d4 {[%emt 0:00:16]} cxd4 {
[%emt 0:00:06]} 4. Nxd4 {[%emt 0:00:07]} Nf6 {[%emt 0:02:38]} 5. Nc3 {[%emt 0:
00:00]} e5 {[%emt 0:00:07]} 6. Nb3 {[%emt 0:05:05]} Bb4 {[%emt 0:00:27]} 7. Qf3
{[%emt 0:05:36]} d6 {[%emt 0:10:04] B28: Sicilian: 2 Nf3 a6 (O'Kelly Variation)
.} 8. Bd2 {[%emt 0:05:54]} O-O {[%emt 0:01:17]} 9. h3 {[%emt 0:00:09]} Be6 {
[%emt 0:03:05] The position is equal.} 10. a3 {[%emt 0:12:30]} (10. Bd3 $11)
10... Bxc3 $15 {[%emt 0:02:32]} 11. Bxc3 {[%emt 0:00:06] [#]} Nc6 $146 {
[%emt 0:00:09]} ({Predecessor:} 11... Qc7 12. Be2 d5 13. Bd3 d4 14. Bd2 Nbd7
15. O-O Rac8 16. Qe2 Bc4 17. Rac1 Bxd3 18. Qxd3 {0-1 (26) Gretzer,O (2057)
-Bleher,W (1933) Ellwangen 2003}) 12. Bd3 {[%emt 0:09:23]} Qb6 {[%emt 0:02:41]}
13. Nd2 {[%emt 0:01:17]} d5 {[%emt 0:02:19]} 14. b4 {[%emt 0:03:21]} a5 {
[%emt 0:07:57][%cal Ra5b4]} (14... d4 $5 15. Bb2 Rac8 $11) 15. b5 {[%emt 0:00:
00]} Nd4 {[%emt 0:00:53]} 16. Bxd4 {[%emt 0:00:06]} Qxd4 {[%emt 0:00:07]} 17.
O-O {[%emt 0:00:08]} Rac8 $36 {[%emt 0:02:28] Black is pushing.} 18. Rfe1 {
[%emt 0:02:47]} b6 {[%emt 0:04:44]} 19. Qg3 {[%emt 0:10:13]} dxe4 {[%emt 0:11:
46]} 20. Nxe4 {[%emt 0:00:40]} Nxe4 {[%emt 0:00:44]} 21. Bxe4 {[%emt 0:00:21]}
Rc3 {[%emt 0:01:04]} 22. Qh4 {[%emt 0:09:47][%csl Ge4][%cal Rh4h7]} h6 {
[%emt 0:04:53] Active counter play!} 23. Rad1 {[%emt 0:02:03] [#]} Qc5 {
[%emt 0:00:17]} 24. Rd8 {[%emt 0:07:35] [#]} Qxa3 {[%emt 0:07:59]} ({Much less
strong is} 24... Rxa3 25. Red1 f5 26. Rxf8+ Kxf8 27. Qd8+ Kf7 28. Bc6 $14) (
24... f5 $1 $17 {[%cal Rf5e4]} 25. Rxf8+ Qxf8) 25. Red1 $1 $11 {[%emt 0:00:00]}
Rc8 $1 {[%emt 0:01:27] aiming for ...Rcxd8.} 26. R1d6 {[%emt 0:00:34] Black
converts the advantage convincingly.} (26. R8d3 $1 $11 Qa2 27. Rg3) 26... Rcxd8
$19 {[%emt 0:10:14] The board is on fire.} 27. Rxd8 {[%emt 0:05:22]} Qc5 {
[%emt 0:07:11] Threatens to win with ...a4.} 28. Bd3 {[%emt 0:06:00]} f5 {
[%emt 0:02:40]} 29. Rxf8+ {[%emt 0:00:11]} Kxf8 {[%emt 0:00:00][%cal Yg8f8,
Yf8f7,Yf7f6] Endgame KQB-KQB} 30. Qd8+ {[%emt 0:00:00]} Kf7 {[%emt 0:00:08]}
31. Qa8 {[%emt 0:06:22]} (31. Qb8 $142) 31... e4 {[%emt 0:04:57]} 32. Bf1 {
[%emt 0:01:57]} Bd5 {[%emt 0:03:05]} 33. Qd8 {[%emt 0:00:00]} (33. Qb8) 33...
a4 {[%emt 0:01:13][%cal Ya5a4,Ya4a3] Black is clearly winning.} 34. Qd7+ {
[%emt 0:00:39]} Kf6 {[%emt 0:00:27]} 35. c4 {[%emt 0:01:43]} Be6 {[%emt 0:00:
47]} 36. Qd8+ {[%emt 0:00:06]} Kf7 {[%emt 0:00:00] ...a3 is the strong threat.}
37. Qb8 {[%emt 0:01:07]} a3 {[%emt 0:00:17]} 38. Be2 {[%emt 0:00:46]} Ke7 {
[%emt 0:02:08] And now ...e3 would win.} 39. Qa7+ {[%emt 0:00:38]} Kf6 {
[%emt 0:01:17] White must now prevent ...e3.} 40. Qa4 {[%emt 0:00:51]} e3 {
[%emt 0:00:42]} 41. fxe3 {[%emt 0:30:34]} Qxe3+ {[%emt 0:00:00]} 42. Kf1 {
[%emt 0:00:18]} Kg6 {[%emt 0:00:00]} (42... Qc1+ $142 43. Kf2 Qb2) 43. Qa8 {
[%emt 0:00:00]} Kh7 {[%emt 0:00:00] Weighted Error Value: White=0.91/Black=0.45
} 0-1

[Event "44th Chess Olympiad Open 2022"]
[Site "Chennai"]
[Date "2022.07.29"]
[Round "1.49"]
[White "Jamal, Hamid Harmon Gulamo"]
[Black "Diaz Hollemaert, Nahuel"]
[Result "1/2-1/2"]
[WhiteElo "1617"]
[BlackElo "2425"]
[Annotator "TA"]
[PlyCount "86"]
[EventDate "2022.??.??"]
[TimeControl "60"]

{[%evp 12,86,46,28,50,0,0,-1,10,-52,-59,-58,-52,-51,-48,-56,-56,-56,-27,-35,0,
25,16,-98,-90,-90,-65,-90,-90,-96,-67,-74,-73,-78,-68,-106,-106,-106,-106,-114,
-118,-110,-76,-136,-137,-127,-133,-125,-123,-125,-112,-133,-122,-106,-106,-103,
-93,-106,-106,-106,-43,-137,-140,-129,-80,-92,-52,-72,0,0,0,0,0,0,0,0,8]} 1. e4
{[%emt 0:00:07]} d6 {[%emt 0:00:26]} 2. d4 {[%emt 0:00:07]} g6 {[%emt 0:00:23]}
3. Nc3 {[%emt 0:00:08]} Bg7 {[%emt 0:00:17]} 4. Be3 {[%emt 0:00:15]} a6 {
[%emt 0:00:42]} 5. Qd2 {[%emt 0:01:20]} b5 {[%emt 0:03:55][%cal Yb7b5,Yb5b4]}
6. O-O-O {[%emt 0:03:18]} Nd7 {[%emt 0:04:42]} 7. f3 {[%emt 0:02:43]} Nb6 {
[%emt 0:00:53] B06: Modern Defence.} 8. d5 {[%emt 0:01:19]} (8. a3 $14) 8... b4
$1 $11 {[%emt 0:06:56]} 9. Nb1 {[%emt 0:00:58]} a5 {[%emt 0:00:40] [#]} 10.
Bxb6 $146 {[%emt 0:03:19]} (10. h4 $11) ({Predecessor:} 10. Bd4 Nf6 11. g4 e5
12. dxe6 fxe6 13. g5 Nh5 14. Bxg7 Nxg7 15. e5 d5 16. Qf4 {0-1 (35) Khamdamova,
A (1964)-Gubajdullin,A (2331) Chess.com INT 2022}) 10... cxb6 $15 {[%emt 0:00:
07]} 11. Bb5+ {[%emt 0:00:33]} Bd7 {[%emt 0:00:30]} 12. Qd3 {[%emt 0:00:31]}
Nf6 {[%emt 0:00:45]} 13. Ne2 {[%emt 0:02:27][%cal Yg1e2,Ye2d4,Yd4b5,Yb5c7]} O-O
{[%emt 0:04:01]} 14. Nd4 {[%emt 0:01:58]} e6 {[%emt 0:10:26]} 15. Bxd7 {
[%emt 0:08:59]} Qxd7 {[%emt 0:00:48]} (15... Nxd7 $15 16. dxe6 Nc5 17. exf7+
Rxf7) 16. dxe6 $11 {[%emt 0:00:17]} fxe6 {[%emt 0:00:06]} 17. Qb5 {[%emt 0:00:
58]} (17. Nd2 $11) 17... Qxb5 $17 {[%emt 0:10:52]} 18. Nxb5 {[%emt 0:02:03]} d5
{[%emt 0:00:14]} 19. Nc7 {[%emt 0:07:02]} Bh6+ {[%emt 0:00:35]} 20. Nd2 {
[%emt 0:00:55]} Rac8 {[%emt 0:00:13]} 21. Nxe6 {[%emt 0:02:51]} Rfe8 {[%emt 0:
00:25]} 22. Nd4 {[%emt 0:01:14]} Rc4 {[%emt 0:00:00]} ({Stronger than} 22...
dxe4 23. Kb1 $17) 23. N4b3 {[%emt 0:06:15]} Rec8 $36 {[%emt 0:07:34] Black is
really pushing.} 24. Kb1 {[%emt 0:00:00]} Rxc2 {[%emt 0:00:16] Strongly
threatening ...a4.} 25. Rc1 {[%emt 0:08:05]} Rxc1+ {[%emt 0:00:13]} 26. Rxc1 {
[%emt 0:00:11]} Re8 {[%emt 0:15:01][%cal Rd5e4,Yc8e8,Ye8e4,Ye4c4,Yc4c5]} 27.
Rd1 {[%emt 0:06:19]} (27. Rc6 $142 dxe4 28. fxe4 (28. Rxf6 $2 e3 $19)) 27...
dxe4 {[%emt 0:03:17]} 28. Nxe4 {[%emt 0:00:49]} Nxe4 {[%emt 0:00:05]} 29. fxe4
{[%emt 0:00:17]} Rxe4 {[%emt 0:00:00] Endgame KRB-KRN} 30. Nd4 {[%emt 0:00:25]}
a4 {[%emt 0:01:40]} 31. Kc2 {[%emt 0:00:45]} Bg7 {[%emt 0:02:03]} 32. Nf3 {
[%emt 0:00:52]} Rc4+ {[%emt 0:00:37]} 33. Kd3 {[%emt 0:01:54]} Rc5 {[%emt 0:00:
43]} 34. Rd2 {[%emt 0:00:00]} Kf7 {[%emt 0:01:57]} 35. Rc2 {[%emt 0:02:03] [#]}
Ke6 {[%emt 0:03:17]} (35... Rxc2 $1 $17 36. Kxc2 Ke6) 36. b3 {[%emt 0:04:09]} (
36. Rc4 $15) 36... axb3 {[%emt 0:00:25]} 37. axb3 {[%emt 0:00:17]} Bc3 {
[%emt 0:00:02]} ({Black should play} 37... Rc3+ 38. Rxc3 bxc3) 38. Ra2 {
[%emt 0:01:48]} Rd5+ {[%emt 0:00:00]} 39. Ke4 {[%emt 0:00:33] [#]} Ra5 {
[%emt 0:00:39] Prevents Ra7.} (39... Rd7 $1 $17) 40. Rxa5 $11 {[%emt 0:01:42]
The position is equal.} bxa5 {[%emt 0:00:00]} 41. Ng5+ {[%emt 0:30:26]} Kd6 {
[%emt 0:23:31]} 42. Nxh7 {[%emt 0:00:00]} Kc5 {[%emt 0:03:37][%cal Ya5a4] ...
a4! is the strong threat.} 43. Kd3 {[%emt 0:00:00]} Kd5 {[%emt 0:00:00]
Weighted Error Value: White=0.18 (very precise) /Black=0.17 (very precise)}
1/2-1/2